Cogmind - Beta 15 @@@ ROGUE MODE // 2025.06.01 @ 14:55:36 Player: Elias Result: Self-destructed Performance ------------- Evolutions (2) 1000 Regions Visited (3) 600 Robots Destroyed (61) 305 Value Destroyed (1442) 1442 Prototype IDs (4) 80 Alien Tech Used (0) 0 Bonus (0) 0 TOTAL SCORE: 3427 Bonus ------- None Cogmind --------- Core Integrity 262/550 Matter 284/300 Energy 86/100 System Corruption 4% Temperature Cool (18) Movement Core (50) Location -8/Materials Parts ------- > --- POWER (1) -------- (None) > --- PROPULSION (4) --- (None) > --- UTILITY (4) ------ (None) > --- WEAPON (2) ------- (None) > --- INVENTORY (5) ---- Aluminum Leg Transmission Jammer Transmission Jammer Advanced Beam Cannon Improved Assault Rifle Peak State ------------ > --- POWER ------------ Light Deuterium Engine > --- PROPULSION ------- VSS Leg VSS Leg VSS Leg Improved Carbon-fiber Leg > --- UTILITY ---------- High-capacity Storage Unit Improved Signal Interpreter Transport Network Coupler Transmission Jammer > --- WEAPON ----------- Beam Rifle Gauss Rifle > --- INVENTORY -------- Ion Engine Reinforced Ion Engine Light Nuclear Core Light Treads Light Treads Improved Cooling System Transmission Jammer Transmission Jammer Hardened Medium Armor Plating Field Recycling Unit Medium Laser Advanced Beam Cannon Advanced Beam Cannon Autogun Autogun Improved Assault Rifle Improved Assault Rifle Improved Light Cannon Advanced Assault Cannon Axe [Rating: 36] Favorites ----------- Power Ion Engine Engine Ion Engine Power Core Light Nuclear Core Propulsion Aluminum Leg Leg Aluminum Leg Utility Transport Network Coupler Device Seismic Detector Storage High-capacity Storage Unit Processor Transport Network Coupler Protection Propulsion Shielding Weapon Improved Assault Rifle Energy Gun Beam Rifle Energy Cannon Advanced Beam Cannon Ballistic Gun Improved Assault Rifle Ballistic Cannon Advanced Assault Cannon Build | -11 -10 -9 -8 ------- Run | Yrd Mat Mat Mat Slots Evolved 4 | . . 2 2 Power . | . . . . Propulsion 2 | . . 1 1 Utility 2 | . . 1 1 Weapon . | . . . . Parts Attached 46 | 7 2 17 20 Power 7 | 1 1 2 3 Engine 6 | 1 1 2 2 Core 1 | . . . 1 Reactor . | . . . . Propulsion 16 | 2 1 5 8 Treads . | . . . . Leg 16 | 2 1 5 8 Wheel . | . . . . Hover . | . . . . Flight . | . . . . Utility 10 | 2 . 4 4 Device 3 | 1 . . 2 Storage 2 | 1 . 1 . Processor 2 | . . 1 1 Hackware . | . . . . Protection 3 | . . 2 1 Artifact . | . . . . Weapon 13 | 2 . 6 5 Energy Gun 4 | . . 2 2 Energy Cannon 1 | . . 1 . Ballistic Gun 7 | 2 . 3 2 Ballistic Cannon 1 | . . . 1 Launcher . | . . . . Special Weapon . | . . . . Impact Weapon . | . . . . Slashing Weapon . | . . . . Piercing Weapon . | . . . . Special Melee Weapon . | . . . . Unidentified Prototypes 4 | . . 3 1 Parts Lost 15 | . 1 4 10 Power 3 | . 1 1 1 Propulsion 5 | . . 1 4 Utility 4 | . . 2 2 Weapon 3 | . . . 3 Highest Loss Streak 5 | . 1 3 5 To Critical Strikes . | . . . . Average Backups 15 | 3 7 15 19 Power 2 | . 1 2 3 Propulsion 3 | 1 3 4 1 Utility 2 | . . 2 4 Weapon 6 | 1 2 6 9 Tool/Special . | . . . . Unused Backups 24 | . 1 2 21 Power 4 | . . . 4 Propulsion 2 | . . . 2 Utility 8 | . . 1 7 Weapon 10 | . 1 1 8 Tool/Special . | . . . . Average Slot Usage (%) 94 | . 99 93 95 Engine 9 | . 13 11 5 Core 1 | . . . 3 Leg 31 | . 28 30 34 Device 7 | . 14 3 11 Storage 10 | . 14 11 9 Processor 8 | . . 9 11 Protection 2 | . . 4 1 Energy Gun 1 | . . 2 1 Ballistic Gun 19 | . 28 19 15 Peak Build Rating 36 | 7 7 16 36 Average Rating 16 | 5 6 13 27 On Entrance 7 | . 7 7 16 Naked Turns . | . . . . Heaviest Build 57 | 14 14 56 57 Greatest Support 54 | 20 20 30 54 Greatest Overweight (x) 2 | . . 2 1 Average Overweight (x) . | . . . . Largest Inventory Capacity 20 | 8 8 20 20 Average Capacity 17 | 7 8 18 20 Most Carried 20 | 6 8 20 20 Average Carried 15 | 3 7 15 19 Final Capacity 20 | 8 8 20 5 Final Carried 18 | 5 8 18 5 Class Distribution -------------------- 80% | Scavenger-Mutant 19% | Mutant Dominant Class ---------------- Mutant | -10/Materials Scavenger-Mutant | -9/Materials Scavenger-Mutant | -8/Materials Resources | -11 -10 -9 -8 ----------- Run | Yrd Mat Mat Mat Matter Collected 1884 | 315 130 545 894 Remotely . | . . . . Salvage Created 2224 | 137 240 859 988 Parts 139 | 10 14 60 55 Haulers Intercepted 5 | . 1 4 . Recyclers Shooed 3 | . . 1 2 Parts Field Recycled . | . . . . Retrieved Matter . | . . . . Parts Self-Destructed . | . . . . Prevented . | . . . . Kills | -11 -10 -9 -8 ------- Run | Yrd Mat Mat Mat Combat Hostiles Destroyed 34 | . 4 17 13 Guns 32 | . 4 17 11 Cannons 2 | . . . 2 Classes Destroyed 13 | 3 3 4 3 Worker 3 | 2 . . 1 Builder 3 | . . 1 2 Tunneler 2 | 2 . . . Hauler 5 | . 1 4 . Recycler 4 | 1 . . 3 Mechanic 1 | . . . 1 Operator 2 | . . 1 1 Watcher 7 | . 1 3 3 Swarmer 9 | . . 7 2 Grunt 16 | . 4 6 6 Brawler 1 | . . . 1 Sentry 4 | . . 4 . Specialist 4 | . . . 4 Best Kill Streak 7 | 4 3 7 5 Combat Bots Only 4 | . 2 4 2 Max Kills in Single Turn 2 | 1 1 1 2 Gunslinging 1 | . . . 1 Exploded . | . . . . Melee . | . . . . Uniques/NPCs Destroyed . | . . . . Combat | -11 -10 -9 -8 -------- Run | Yrd Mat Mat Mat Hostile Shots Fired 294 | . 41 104 149 Missed 74 | . 7 27 40 Hits 220 | . 34 77 109 Melee 8 | . . . 8 Projectile 212 | . 34 77 101 AOE 3 | . . . 3 Critical Strikes 11 | . . 3 8 Damage Taken 3009 | . 377 933 1699 Core 557 | . 54 215 288 Absorbed by Shields . | . . . . Redirected to Shielding 51 | . . 51 . Core Remaining (%) 74 | 100 78 46 . Volleys Fired 207 | 12 28 78 89 Largest 2 | 2 2 2 2 Hottest 84 | 40 40 79 84 Shots Fired 411 | 24 56 156 175 Gun 393 | 24 56 156 157 Cannon 18 | . . . 18 Launcher . | . . . . Special . | . . . . Kinetic 380 | 24 56 144 156 Thermal 31 | . . 12 19 Explosive . | . . . . Electromagnetic . | . . . . Robot Hit Streak 14 | 4 6 13 14 Robot Miss Streak 8 | 2 3 4 8 Penetration Max 1 | . . . 1 Secondary Targets 5 | . 1 2 2 Max Gunslinging Chain 1 | . 1 1 1 Shots Hit Robots 250 | 13 33 96 108 Core Hits 102 | 8 12 39 43 Critical Kills . | . . . . Critical Parts Destroyed . | . . . . Critical Strikes 3 | . . 1 2 Burn 1 | . . 1 . Blast 2 | . . . 2 Melee Attacks . | . . . . Impact . | . . . . Slashing . | . . . . Piercing . | . . . . Sneak Attacks . | . . . . Combat Hostiles . | . . . . Follow-up Attacks . | . . . . Damage Inflicted 3805 | 132 362 1403 1908 Guns 3471 | 132 362 1363 1614 Cannons 294 | . . . 294 Explosions . | . . . . Melee . | . . . . Ramming 40 | . . 40 . Kinetic 3478 | 132 362 1233 1751 Thermal 287 | . . 130 157 Explosive . | . . . . Electromagnetic . | . . . . Impact . | . . . . Slashing . | . . . . Piercing . | . . . . Highest Corruption 4 | . . . 4 Average Corruption 4 | . . . 4 Corruption Purged . | . . . . Corruption Blocked . | . . . . Effects 22 | . . . 22 Message Errors 4 | . . . 4 Matter Fused 6 | . . . 6 Heat Flow Errors 1 | . . . 1 Energy Discharges 3 | . . . 3 Parts Rejected 1 | . . . 1 Parts Fused 1 | . . . 1 Data Loss (minor) 3 | . . . 3 Misfires 1 | . . . 1 Weapon Failures 2 | . . . 2 Overload Shots . | . . . . Overflow Damage 8 | . . 8 . Projectiles . | . . . . Explosions . | . . . . Melee 8 | . . 8 . Knockbacks 5 | . . . 5 Impact . | . . . . Kinetic 5 | . . . 5 Secondary . | . . . . Self-Inflicted Damage . | . . . . Shots . | . . . . Rammed . | . . . . Targets Rammed 5 | . . 5 . Kicked 5 | . . 5 . Crushed . | . . . . Highest Temperature 205 | . 28 81 205 Average Temperature 37 | . 9 21 51 Received Heat Transfer 1155 | . 204 348 603 Siege Activations . | . . . . Martial Activations . | . . . . Shielding Activations . | . . . . Robots Disrupted . | . . . . Combat Hostiles . | . . . . Robots Corrupted 1 | . . 1 . Combat Hostiles . | . . . . Parts Fried 1 | . . 1 . Impact Corruptions 1 | . . 1 . Robots Melted . | . . . . Combat Hostiles . | . . . . Parts Melted . | . . . . Heat Transferred 814 | . . 407 407 Parts Sabotaged . | . . . . Parts Stolen . | . . . . Parts Stripped . | . . . . Power Chain Reactions . | . . . . Alert | -11 -10 -9 -8 ------- Run | Yrd Mat Mat Mat Maximum Alert Level . | . . . . Low Security (%) 100 | 100 100 100 100 Level 1 . | . . . . Level 2 . | . . . . Level 3 . | . . . . Level 4 . | . . . . Level 5 . | . . . . High Security . | . . . . Max Security . | . . . . Peak Influence 176 | 15 60 176 111 Initial 46 | . 3 . 46 Average 59 | 2 13 83 48 Influence Increases 1143 | 25 104 567 447 Destroy 0b10 Robot/C 680 | . 80 340 260 Destroy 0b10 Robot/NC 135 | 25 10 45 55 Destroy Leader 164 | . 14 104 46 Successful Hack 4 | . . . 4 Destroy Structure 10 | . . 3 7 Partial Spotted 15 | . . . 15 Lose Combat Pursuer 135 | . . 75 60 Influence Decreases 1096 | 20 109 455 512 Entered New Map 68 | . 2 . 66 Time Decay 878 | 20 97 415 346 Lost Part 150 | . 10 40 100 Squads Dispatched 10 | . 3 2 5 Investigation 3 | . 2 . 1 Extermination . | . . . . Reinforcement 7 | . 1 2 4 Assault . | . . . . Garrison . | . . . . Intercept . | . . . . Searches Triggered . | . . . . Construction Impeded 1 | . . 1 . Haulers Reinforced . | . . . . Active Scanning Responses . | . . . . Cargo Convoy Interrupts . | . . . . Stealth | -11 -10 -9 -8 --------- Run | Yrd Mat Mat Mat Distress Signals 4 | . 1 1 2 Communications Jammed 49 | . . . 49 Distress Signals 49 | . . . 49 Times Spotted 75 | . 6 33 36 Peak Tracking Total 13 | . 3 9 13 Tactical Retreats 6 | . . 3 3 Traps | -11 -10 -9 -8 ------- Run | Yrd Mat Mat Mat Traps Triggered 3 | . 1 . 2 Indirectly . | . . . . Trap Hack Attempts . | . . . . Triggered . | . . . . Disarmed . | . . . . Reprogrammed . | . . . . Reused . | . . . . Traps Extracted . | . . . . Installed . | . . . . Triggered . | . . . . Machines | -11 -10 -9 -8 ---------- Run | Yrd Mat Mat Mat Machines Disabled . | . . . . Max in Single Turn . | . . . . Machines Repaired . | . . . . Machines Dismantled . | . . . . Machines Sabotaged . | . . . . Overloaded Fab Kills . | . . . . Hacking | -11 -10 -9 -8 --------- Run | Yrd Mat Mat Mat Machines Accessed 7 | . 2 3 2 Terminals 5 | . 2 1 2 Fabricators . | . . . . Repair Stations . | . . . . Recycling Units 1 | . . 1 . Scanalyzers 1 | . . 1 . Garrison Access . | . . . . Total Hacks 15 | . 5 6 4 Successful 9 | . 3 3 3 Failed 6 | . 2 3 1 Catastrophic 3 | . 1 1 1 Database Lockouts . | . . . . Manual . | . . . . Terminals 11 | . 5 2 4 Fabricators . | . . . . Repair Stations . | . . . . Recycling Units 1 | . . 1 . Scanalyzers 3 | . . 3 . Garrison Access . | . . . . Terminal Hacks 6 | . 3 . 3 Record 5 | . 3 . 2 Locate Traps 1 | . . . 1 Fabricator Hacks . | . . . . Repair Station Hacks . | . . . . Recycling Unit Hacks 1 | . . 1 . Retrieve Components 1 | . . 1 . Scanalyzer 2 | . . 2 . Insert Component 1 | . . 1 . Analyze 1 | . . 1 . Garrison Access Hacks . | . . . . Unauthorized Hacks . | . . . . Terminals . | . . . . Fabricators . | . . . . Repair Stations . | . . . . Recycling Units . | . . . . Scanalyzers . | . . . . Garrison Access . | . . . . Data Cores Recovered 1 | . . . 1 Used . | . . . . Hacking Detections 5 | . 2 1 2 Full Trace Events 3 | . 2 1 . Feedback Events . | . . . . Feedback Blocked . | . . . . Robot Schematics Acquired . | . . . . Robots Built . | . . . . Authchips . | . . . . Time . | . . . . Total Robot Build Rating . | . . . . Part Schematics Acquired 1 | . . 1 . Parts Built . | . . . . Authchips . | . . . . Time . | . . . . Total Part Build Rating . | . . . . Parts Repaired . | . . . . Time . | . . . . Parts Recycled . | . . . . Recycled Matter . | . . . . Retrieved Matter . | . . . . Retrieved Components 9 | . . 9 . Parts Scanalyzed 1 | . . 1 . Part Schematics Acquired 1 | . . 1 . Parts Damaged . | . . . . Bothacking | -11 -10 -9 -8 ------------ Run | Yrd Mat Mat Mat Used RIF Installer . | . . . . Robots Hacked . | . . . . Non-combat . | . . . . Combat . | . . . . Robot Hacks Applied . | . . . . Relay Couplers Released . | . . . . Fabnet Peak Effective % . | . . . . Robots Rewired . | . . . . Allies Hacked . | . . . . Hacks Repelled . | . . . . Allies | -11 -10 -9 -8 -------- Run | Yrd Mat Mat Mat Total Allies . | . . . . Largest Group . | . . . . Highest-Rated Group . | . . . . Highest-Rated Ally . | . . . . Total Orders . | . . . . Ally Attacks . | . . . . Total Damage . | . . . . Kills . | . . . . Allies Corrupted . | . . . . Allies Melted . | . . . . Intel | -11 -10 -9 -8 ------- Run | Yrd Mat Mat Mat Active Infowar (turns) 2868 | 33 399 1434 1002 Traps 458 | . . . 458 Seismic 870 | 33 399 438 . T.N.C. 2273 | . . 1271 1002 Jamming 841 | . . . 841 Robot Analysis Total . | . . . . Derelict Logs Recovered . | . . . . Drone Launches . | . . . . Drone Recoveries . | . . . . Exploration | -11 -10 -9 -8 ------------- Run | Yrd Mat Mat Mat Turns Passed 2963 | 128 399 1434 1002 Spaces Moved 1199 | 70 164 604 361 Core 11 | 11 . . . Treads . | . . . . Legs 1188 | 59 164 604 361 Wheels . | . . . . Hover . | . . . . Flight . | . . . . Fastest Speed 50 | 50 120 120 97 Average Speed 171 | 109 120 186 183 Slowest Speed 260 | 120 120 260 190 Overloaded Moves . | . . . . Propulsion Burnouts . | . . . . Robots Hopped . | . . . . Potential Cave-ins . | . . . . Cave-ins Triggered . | . . . . Exploration Rate (%) 28 | 5 34 39 36 Regions Visited 3 Branch Regions . Pre-discovered Areas . | . . . . Known Exits Taken . | . . . . Unknown Exits Taken 3 | 1 1 1 . Scrap Searched . | . . . . Spaces Dug . | . . . . Terrain Destroyed 5 | . . . 5 Melee . | . . . . Projectile 5 | . . . 5 AOE . | . . . . Terrain Rammed . | . . . . Walls Destroyed . | . . . . Machines Disabled . | . . . . Actions | -11 -10 -9 -8 --------- Run | Yrd Mat Mat Mat Total 1721 | 100 318 760 543 Wait 174 | . 117 17 40 Move 1196 | 69 163 603 361 Hop . | . . . . Pick Up 54 | 12 6 25 11 Fast Attach 8 | . . 2 6 Attach 20 | 7 1 8 4 Detach . | . . . . Swap 24 | . 1 9 14 Drop 33 | . 2 13 18 Fire 207 | 12 28 78 89 Melee . | . . . . Ram . | . . . . Kick 5 | . . 5 . Crush . | . . . . Escape Stasis . | . . . . Rewire . | . . . . Trap . | . . . . Miscellaneous . | . . . . Route ------- -11/Scrapyard -10/Materials -9/Materials -8/Materials History --------- Turn | Location | Event 7 | -11/Scrapyard | Discovered new exit (range 15) 129 | -11/Scrapyard | Entered Materials 310 | -10/Materials | Build established: Mutant 321 | -10/Materials | Discovered new exit (range 5) 528 | -10/Materials | Entered another Materials area 528 | -9/Materials | Evolved 2 slots: Propulsion x1, Utility x1 829 | -9/Materials | Build established: Scavenger-Mutant 990 | -9/Materials | Discovered new exit (range 16) 1524 | -9/Materials | Core integrity fell below 50% 1601 | -9/Materials | Lost 3 parts (1p1n1u) 1962 | -9/Materials | Entered another Materials area 1962 | -8/Materials | Evolved 2 slots: Propulsion x1, Utility x1 2964 | -8/Materials | Released all parts (4) 2964 | -8/Materials | Self-destructed Last Messages --------------- 02956_ O-16 Technician: "IFF HANDSHAKE FAILED. SECURING TERMINAL." 02957_ Lgt. Deuterium Engine destroyed. 02957_ Knocked back. 02957_ Triggered Alarm Trap. 02957_ An alarm sounds. 02957_ ALERT: Alarm triggered, dispatching investigation squad. 02958_ ALERT: Hostiles spotted, dispatching reinforcements to Terminal M007. 02960_ Imp. Assault Rifle destroyed. 02960_ Knocked back. 02960_ S-10 Pest destroyed. 02961_ Imp. Carbon-fiber Leg destroyed. 02961_ Gauss Rifle destroyed. 02961_ VSS Leg destroyed. 02961_ VSS Leg severed. 02962_ C-17 Slicer knocked back. 02964_ Released Imp. Signal Interpreter. 02964_ Released Transport Network Coupler. 02964_ Released Hcp. Storage Unit. 02964_ Released Adv. Assault Cannon. Map ----- +----------------------------------------------------+ | | | | | | | | | | | | | | | | | | | | | | | | | | | | | | | ?????????????????????????????????????????????????? | | ?????????????????????????????????????????????????? | | ?????????????????????????????????????????????????? | | ?????????????????????????????????????????????????? | | ?????????????????????????????????????????????????? | | ?????????????????????????????????????????????????? | | ???????????????????????#########?????????????????? | | ??????????????????????## = = #?????????????????? | | ??????????????????????# [!]""" +?????????????????? | | ??????????????????????#[Y*="T" #?????????????????? | | ?????????????????######]c@=* o # ???????????????? | | ?????????######### %]cc###/## ##?????????????? | | ?????????# # ![a #???????????? | | ?????????# # s = #???????????? | | ?????????# ] # s""" """ ##?????????????? | | ?????????#!!! # %"" """ #??????????????? | | ?????????#!!! # g *="" """ +??????????????? | | ?????????#!! Y #??????????????? | | ??+??????# " # #??????????????? | | ? #??????# ""< ###+## #+#####??????????????? | | #??????# " ## # ????????????????????? | | ##?????# ##! # ???????????????????? | | #?????# ## #? ??????????????????? | | #?????####+##### # ##?? ?????????????????? | | T #????????# #???# # #???"" ????????????????? | | #????????# #???#! # #??????????????????????? | | #????????# #???# # #??????????????????????? | | ?############ #???##### #??????????????????????? | | ?# / #???????# ##?????????????????????? | | ## """"""" ## #???????# +?????????????????????? | | # """"""" ## ######### #??????????????????????? | | # """"""" ## #??????????????????????? | | # """"""" ## ###????????????????????? | | # """"""" ## ?????????????????? | | # ##= ?????????????????? | +----------------------------------------------------+ Best States ------------- Heat Dissipation 31 Energy Generation 14 Energy Capacity 265 Matter Stores 300 Matter Capacity 300 Sight Range 16 Terrain Scan Density 10 Jamming Range 12 Armor Coverage 150 Propulsion Shielding 33 Evasion (%) 55 Item Schematics ----------------- Lgt. Nuclear Core | -9/Materials | Scanalyzed Robot Schematics ------------------ None Fabricated ------------ Nothing Repaired ---------- Nothing Alien Tech Used ----------------- None Achievements -------------- Total Silence Challenges ------------ None Game ------ Seed CoolantJammingDisintegrator Manual? 0 Play Time 00:23:06 Cumulative 39.7 hours Start 2025.06.01 @ 14:33:57 End 2025.06.01 @ 14:55:36 Sessions 1 Manual Loads 0 Difficulty Rogue Special Mode None Game No. 65 Rogue 65 Adventurer 0 Explorer 0 Win Type - Total 0 Types 0/0/0/0/0/0/0/0/0/0 Lore% 33 Gallery% 35 Achievement% 30 Wizard Run 0 Options --------- Layout 0 ASCII 0 Keyboard 0 Movement Mouse Keybinds 0 Fullscreen 1 Font 18/SmallcapsGlow Map View 76x50 Zoom Use 0% Tactical HUD 1 Map Filters NONE Filters NONE Steam 1 RUN: 3f021050-8a0f-43c1-bb23-e7ec8025520e